bitfinex-derivatives/quotes_SOLF0:USTF0_20241016
["timestamp","ask_amount","ask_price","bid_price","bid_amount"]
[1729088656334,3.2048,156.03,155.94,29.54]
[1729088656535,3.2048,156.03,156.0,3.2052]
[1729088656730,1.382,156.06,155.94,29.54]
[1729088656933,1.382,156.06,155.95,3.20198781]
[1729088657232,1.3132,156.07,155.97,29.54]
[1729088657434,29.54,156.15,155.98,6.7]
[1729088657633,6.7,156.13,155.98,6.7]
[1729088657833,6.7,156.13,156.0,29.54]
[1729088659141,3.2033,156.1,156.0,29.54]
[1729088659343,6.7,156.13,156.0,29.54]
[1729088660343,3.2037,156.08,156.0,29.54]
[1729088660538,36.24,156.13,155.98,36.24]
[1729088660733,3.204,156.06,156.02,3.2047]
[1729088660940,36.24,156.13,155.98,36.24]
[1729088661345,3.2037,156.08,156.04,3.2042]
[1729088661541,3.2037,156.08,155.98,36.24]
[1729088661542,1.3132,156.15,156.03,6.7]
[1729088661742,6.7,156.14,156.03,6.7]
[1729088661943,8.1477,156.14,156.03,6.7]
[1729088663444,8.1477,156.14,156.03,9.96509034]
[1729088663844,3.2032,156.1,156.06,3.2039]
[1729088665838,8.1477,156.14,156.07,3.2037]
[1729088666042,1.4477,156.14,156.03,39.50509034]
[1729088666247,2.7388,156.16,156.03,39.50509034]
[1729088666440,1.382,156.16,156.11,3.2028]
[1729088666646,3.2023,156.15,156.11,3.2028]
[1729088666949,3.2023,156.15,156.08,6.7]
[1729088667149,3.2023,156.15,156.1,3.2032]
[1729088667342,3.2023,156.15,156.08,6.7]
[1729088668047,4.259,156.2,156.08,6.7]
[1729088668248,2.8815,156.2,156.09,29.54]
[1729088668647,3.2014,156.19,156.15,3.202]
[1729088668846,2.8815,156.2,156.15,3.202]
[1729088669251,3.2017,156.18,156.14,3.2023]
[1729088670360,2.8815,156.2,156.11,6.7]
[1729088670655,1.4507,156.2,156.11,6.7]
[1729088670952,6.7,156.24,156.12,29.54]
[1729088671258,3.2009,156.22,156.18,3.2014]
[1729088672052,4.245,156.25,156.17,3.2017]
[1729088672053,3.2007,156.23,156.17,3.2017]
[1729088672359,4.245,156.25,156.16,6.7]
[1729088673253,4.245,156.25,156.19,3.2013]
[1729088673654,3.2013,156.2,156.16,9.9019]
[1729088673849,2.6622,156.26,156.16,9.9019]
[1729088674058,2.6622,156.26,156.16,6.7]
[1729088674260,3.2007,156.23,156.19,3.2012]
[1729088674561,2.6622,156.26,156.16,6.7]
[1729088674863,3.2005,156.23,156.2,3.201]
[1729088676666,2.6622,156.26,156.17,6.7]
[1729088677467,3.2015,156.19,156.17,6.7]
[1729088677661,29.54,156.24,156.12,3.2273455]
[1729088677857,29.54,156.24,156.13,6.7]
[1729088678062,29.54,156.24,156.15,3.2021]
[1729088678063,3.2017,156.18,156.15,3.2021]
[1729088678264,6.7,156.23,156.13,9.85588533]
[1729088678756,6.7,156.23,156.1,29.54]
[1729088678975,6.7,156.23,156.11,6.7]
[1729088679268,3.2019,156.17,156.13,3.2024]
[1729088679563,6.7,156.23,156.12,6.7]
[1729088679767,3.2024,156.15,156.11,9.9028]
[1729088679963,29.54,156.21,156.11,6.7]
[1729088680566,29.54,156.21,156.11,9.9028]
[1729088680970,29.54,156.21,156.11,6.7]
[1729088681269,29.54,156.21,156.12,3.2027]
[1729088681863,29.54,156.18,156.08,3.2035]
[1729088682068,2.7643,156.17,156.01,29.54]
[1729088682266,3.2034,156.09,156.06,6.7]
[1729088682470,29.54,156.16,156.06,6.7]
[1729088682867,29.54,156.16,156.01,29.54]
[1729088682868,2.7643,156.17,156.01,29.54]
[1729088683076,29.54,156.14,156.04,9.9043]
[1729088683267,29.54,156.14,156.03,6.7]
[1729088683469,6.7,156.13,156.03,6.7]
[1729088683975,6.7,156.13,156.02,6.7]
[1729088684375,6.7,156.13,156.03,3.2045]
[1729088684676,6.7,156.13,156.02,6.7]
[1729088684876,3.2032,156.1,156.04,3.2043]
[1729088685078,6.7,156.13,156.02,6.7]
[1729088686075,9.1679,156.17,156.02,6.7]
[1729088686076,3.2032,156.1,156.02,6.7]
[1729088686677,3.2035,156.09,156.02,6.7]
[1729088687070,3.2035,156.09,156.05,3.2041]
[1729088687271,6.64,156.14,156.02,6.7]
[1729088687577,3.2033,156.1,156.06,3.2039]
[1729088688179,9.4043,156.17,156.07,3.14782211]
[1729088688376,2.7643,156.17,156.07,36.18]
[1729088688577,1.3218,156.21,156.1,29.54]
[1729088689077,3.2018,156.17,156.1,29.54]
[1729088689379,3.2018,156.17,156.13,3.2024]
[1729088689573,1.3218,156.21,156.13,3.2024]
[1729088689773,3.202,156.16,156.13,3.2024]
[1729088689967,1.3218,156.21,156.13,3.2024]
[1729088690368,3.2019,156.17,156.13,3.2024]
[1729088690887,3.2016,156.18,156.14,3.2022]
[1729088691379,1.3218,156.21,156.14,3.2022]
[1729088691380,3.2014,156.19,156.14,3.2022]
[1729088691571,1.3218,156.21,156.14,3.2022]
[1729088692483,1.3218,156.21,156.12,9.8428]
[1729088693182,1.3218,156.21,156.12,6.64]
[1729088694780,3.2015,156.19,156.14,3.2022]
[1729088695077,1.3218,156.21,156.14,3.2022]
[1729088695277,3.2014,156.19,156.12,6.64]
[1729088695477,1.3218,156.21,156.13,3.2024]
[1729088695888,1.3218,156.21,156.12,6.64]
[1729088696281,3.2019,156.17,156.14,3.2024]
[1729088696487,1.3218,156.21,156.12,6.64]
[1729088697086,3.2022,156.15,156.12,9.8426]
[1729088697387,1.3218,156.21,156.12,6.64]
[1729088697589,3.2021,156.16,156.13,3.2026]
[1729088697888,30.8618,156.21,156.07,3.18659313]
[1729088698089,29.54,156.18,156.03,29.54]
[1729088698282,3.2031,156.11,156.08,3.2036]
[1729088698480,3.2031,156.11,156.08,6.44034782]
[1729088698676,3.2031,156.11,156.08,3.2036]
[1729088698986,6.64,156.17,156.04,6.64]
[1729088699581,3.2033,156.1,156.04,6.64]
[1729088700183,6.64,156.17,156.06,3.2039]
[1729088700383,6.64,156.17,156.04,6.64]
[1729088700888,3.2035,156.09,156.04,6.64]
[1729088701283,6.64,156.17,156.01,29.54]
[1729088701479,29.54,156.13,155.99,72.38760476]
[1729088701684,9.3489,156.12,156.0,6.64]
[1729088701990,3.204,156.07,156.03,3.2045]
[1729088702880,3.2036,156.08,156.0,6.64]
[1729088703080,2.7089,156.12,156.01,29.54]
[1729088703491,2.7089,156.12,155.99,72.38760476]
[1729088703685,29.54,156.1,155.99,3.22760476]
[1729088703882,36.18,156.1,155.98,6.64]
[1729088704088,3.2048,156.03,155.99,3.2054]
[1729088704300,36.18,156.1,155.99,3.2054]
[1729088704485,36.18,156.1,155.95,29.54]
[1729088704486,3.2054,156.0,155.96,3.206]
[1729088704688,36.18,156.1,155.96,6.64]
[1729088705092,36.18,156.1,155.96,9.88822195]
[1729088705595,29.54,156.06,155.91,69.18]
[1729088705787,29.54,156.03,155.92,6.64]
[1729088705988,29.54,156.03,155.91,75.82]
[1729088705989,2.7942,156.02,155.91,75.82]
[1729088706301,2.7942,156.02,155.91,9.847]
[1729088706894,3.2062,155.96,155.91,9.847]
[1729088707099,2.7942,156.02,155.91,9.847]
[1729088707298,2.7942,156.02,155.91,6.64]
[1729088707498,2.7942,156.02,155.92,3.2069]
[1729088707900,3.2054,155.99,155.92,3.2069]
[1729088708202,2.7942,156.02,155.92,3.2069]
[1729088708602,2.7942,156.02,155.94,3.2064]
[1729088708813,2.7942,156.02,155.91,6.64]
[1729088709107,3.2054,155.99,155.91,6.64]
[1729088709402,3.2054,155.99,155.95,3.2061]
[1729088709603,129.55577733,156.12,155.96,6.64]
[1729088709791,129.55577733,156.12,155.99,3.2053]
[1729088709792,2.8273,156.08,155.99,3.2053]
[1729088709991,2.8273,156.08,156.0,3.13714175]
[1729088710190,2.8273,156.08,155.96,6.64]
[1729088710803,2.8273,156.08,156.04,3.2042]
[1729088711001,2.8273,156.08,155.98,29.54]
[1729088711201,2.8273,156.08,155.99,6.64]
[1729088712100,6.031,156.08,156.01,3.2049]
[1729088712300,69.22,156.18,156.02,29.54]
[1729088712507,2.8298,156.14,156.02,29.54]
[1729088712998,2.8298,156.14,156.07,29.54]
[1729088713215,6.64,156.22,156.08,6.64]
[1729088713508,3.2019,156.17,156.08,6.64]
[1729088714095,3.2019,156.17,156.1,3.203]
[1729088714304,3.2019,156.17,156.08,6.64]
[1729088714601,29.54,156.2,156.08,9.8436]
[1729088714905,29.54,156.2,156.07,6.66]
[1729088715099,3.2023,156.15,156.07,6.66]
[1729088715811,3.2024,156.14,156.1,3.203]
[1729088716802,3.2024,156.14,156.09,3.2033]
[1729088717201,3.2021,156.16,156.09,3.2032]
[1729088717398,3.2021,156.16,156.07,36.2]
[1729088717600,6.66,156.19,156.07,36.2]
[1729088717807,2.79,156.21,156.11,3.2028]
[1729088718805,2.79,156.21,156.11,3.2029]
[1729088719310,2.79,156.21,156.07,36.2]
[1729088719311,3.2022,156.15,156.07,36.2]
[1729088719608,85.1886,156.37,156.07,36.2]
[1729088719815,85.1886,156.37,156.14,29.54]
[1729088719816,3.2005,156.24,156.14,29.54]
[1729088720013,3.2005,156.24,156.15,6.66]
[1729088720211,2.8135,156.28,156.15,6.66]
[1729088720506,3.2002,156.25,156.21,3.2009]
[1729088720904,3.1999,156.27,156.24,3.2003]
[1729088721099,29.54,156.34,156.2,36.2]
[1729088721313,9.4735,156.33,156.2,36.2]
[1729088721502,3.1992,156.3,156.23,3.2003]
[1729088721707,2.8135,156.33,156.22,3.13040415]
[1729088722011,2.8135,156.33,156.2,36.2]
[1729088722012,3.2002,156.25,156.2,3.201]
[1729088722201,29.54,156.31,156.2,6.66]
[1729088722402,2.8135,156.33,156.23,29.54]
[1729088722709,6.66,156.39,156.26,29.54]
[1729088722912,36.2,156.4,156.27,6.66]
[1729088723104,1.3841,156.39,156.27,9.87108656]
[1729088723325,1.3841,156.39,156.33,3.1985]
[1729088723611,1.3841,156.39,156.29,6.66]
[1729088723813,3.1982,156.35,156.29,9.8591]
[1729088724007,1.3841,156.39,156.29,9.8591]
[1729088724206,3.1984,156.34,156.29,9.8591]
[1729088724615,1.3841,156.39,156.28,6.66]
[1729088724809,3.1986,156.33,156.21,48.92]
[1729088725007,6.66,156.36,156.22,6.66]
[1729088725311,6.66,156.36,156.22,9.83428052]
[1729088725312,3.1992,156.3,156.22,9.83428052]
[1729088725507,1.3531,156.35,156.23,6.66]
[1729088725909,47.92,156.34,156.18,47.92]
[1729088726103,47.92,156.34,156.19,6.66]
[1729088726309,47.92,156.34,156.22,3.2007]
[1729088726610,47.92,156.34,156.19,6.66]
[1729088726813,47.92,156.31,156.16,117.12]
[1729088727111,1.3531,156.35,156.17,6.66]
[1729088727112,47.92,156.28,156.17,6.66]
[1729088727320,8.0131,156.27,156.17,6.66]
[1729088727618,8.0131,156.27,156.13,47.92]
[1729088727818,47.92,156.25,156.16,6.66]
[1729088728603,47.92,156.25,156.1,68.62457389]
[1729088728914,3.2016,156.18,156.14,3.2023]
[1729088729112,3.2016,156.18,156.11,6.66]
[1729088729509,8.0131,156.27,156.11,6.66]
[1729088729906,8.0131,156.27,156.17,3.2016]
[1729088730112,3.2009,156.22,156.16,6.66]
[1729088730419,8.0131,156.27,156.16,6.66]
[1729088731012,3.2007,156.23,156.18,3.2014]
[1729088731208,8.0131,156.27,156.16,6.66]
[1729088731619,3.201,156.21,156.17,3.2017]
[1729088732021,8.0131,156.27,156.16,6.66]
[1729088732821,3.2013,156.2,156.16,9.8619]
[1729088733123,8.0131,156.27,156.16,6.66]
[1729088733326,3.2018,156.17,156.1,68.62457389]
[1729088733523,6.66,156.22,156.11,6.66]
[1729088734620,3.2015,156.19,156.14,3.2022]
[1729088734825,6.66,156.22,156.11,6.66]
[1729088735222,3.2011,156.21,156.17,3.2017]
[1729088735718,6.66,156.24,156.17,3.2017]
[1729088736517,3.2011,156.2,156.17,3.2017]
[1729088737123,3.201,156.21,156.18,3.2015]
[1729088737322,3.201,156.21,156.16,6.66]
[1729088738127,6.66,156.24,156.16,6.66]
[1729088738329,3.2012,156.2,156.16,6.66]
[1729088738824,3.2012,156.2,156.1,68.62457389]
[1729088738825,6.66,156.24,156.1,68.62457389]
[1729088739121,47.92,156.25,156.11,6.66]
[1729088739321,3.2011,156.2,156.12,47.92]
[1729088740027,3.2007,156.23,156.15,47.92]
[1729088740322,3.2007,156.23,156.19,3.2012]
[1729088741621,3.2007,156.23,156.16,6.66]
[1729088741622,1.3531,156.27,156.16,6.66]
[1729088742320,3.2007,156.23,156.19,3.2012]
[1729088742517,1.3531,156.27,156.19,3.2012]
[1729088743025,3.2008,156.22,156.19,3.2012]
[1729088743225,3.2008,156.22,156.2,3.2011]
[1729088743422,1.3531,156.27,156.18,47.92]
[1729088743725,47.92,156.37,156.28,3.1993]
[1729088743927,3.199,156.31,156.28,3.1993]
[1729088744821,3.199,156.31,156.27,3.1996]
[1729088745219,3.1986,156.33,156.25,6.66]
[1729088745423,3.1986,156.33,156.29,3.1992]
[1729088745633,6.6,156.36,156.25,6.66]
[1729088745831,3.1992,156.3,156.25,6.66]
[1729088746028,36.09,156.36,156.25,6.66]
[1729088746327,29.49,156.33,156.2,6.6]
[1729088746631,29.49,156.3,156.17,6.6]
[1729088746835,6.6,156.29,156.17,6.6]
[1729088747633,6.6,156.29,156.21,3.2008]
[1729088748133,3.2004,156.24,156.21,3.2008]
[1729088748531,6.6,156.29,156.17,6.6]
[1729088749531,3.2007,156.23,156.2,3.2011]
[1729088750235,3.2006,156.23,156.17,6.6]
[1729088750634,6.6,156.29,156.17,6.6]
[1729088751637,29.49,156.27,156.15,69.14]
[1729088751841,29.49,156.27,156.16,3.2018]
[1729088751842,3.2012,156.2,156.16,3.2018]
[1729088752044,29.49,156.27,156.16,3.2018]
[1729088752238,29.49,156.27,156.15,6.6]
[1729088752538,3.2015,156.19,156.15,6.6]
[1729088753034,29.49,156.27,156.23,3.2003]
[1729088753035,3.1999,156.27,156.23,3.2003]
[1729088753639,6.6,156.31,156.2,3.201]
[1729088753938,29.49,156.3,156.17,6.6]
[1729088754133,3.201,156.21,156.17,6.6]
[1729088754332,3.201,156.21,156.1,71.86134828]
[1729088754333,6.6,156.25,156.13,6.6]
[1729088754539,29.49,156.27,156.13,6.6]
[1729088754540,9.3362,156.24,156.13,6.6]
[1729088754732,3.2013,156.2,156.16,3.2019]
[1729088755135,9.3362,156.24,156.13,6.6]
[1729088755335,3.2015,156.19,156.14,3.2022]
[1729088755537,3.2015,156.19,156.13,6.6]
[1729088755939,9.3362,156.24,156.13,6.6]
[1729088756139,3.2012,156.2,156.16,3.2019]
[1729088756949,9.3362,156.24,156.14,29.49]
[1729088757244,2.7362,156.24,156.17,29.49]
[1729088757845,2.7362,156.24,156.16,6.6]
[1729088758547,2.7362,156.24,156.15,51.08385107]
[1729088758937,6.6,156.29,156.18,47.93]
[1729088759146,6.6,156.29,156.19,6.6]
[1729088759746,3.2001,156.25,156.22,3.2006]
[1729088760449,6.6,156.29,156.19,3.2012]
[1729088760949,6.6,156.29,156.16,9.85917152]
[1729088761451,3.2002,156.25,156.21,3.2008]
[1729088761645,3.2002,156.25,156.16,9.85917152]
[1729088761842,6.6,156.29,156.16,9.85917152]
[1729088762045,6.6,156.29,156.18,47.93]
[1729088763050,3.1998,156.27,156.18,47.93]
[1729088763344,6.6,156.29,156.18,47.93]
[1729088763553,3.1999,156.26,156.23,3.2005]
[1729088763740,6.6,156.29,156.18,47.93]
[1729088764149,3.2,156.26,156.22,3.2006]
[1729088764542,6.6,156.29,156.15,6.6]
[1729088764739,47.93,156.28,156.15,9.82580645]
[1729088765249,3.2009,156.22,156.15,9.82580645]
[1729088765439,47.93,156.28,156.15,9.82580645]
[1729088765643,3.2009,156.22,156.18,3.2014]
[1729088765949,6.6,156.29,156.18,3.2014]
[1729088766148,3.2012,156.2,156.17,3.2016]
[1729088766347,3.2012,156.2,156.15,6.6]
[1729088766549,54.53,156.24,156.1,65.45514828]
[1729088766744,47.93,156.21,156.04,3.21277685]
[1729088767052,47.93,156.21,156.01,6.6]
[1729088767053,47.93,156.15,156.01,3.20116487]
[1729088767252,6.6,156.14,155.99,47.93]
[1729088767749,6.6,156.14,155.99,51.09748529]
[1729088768053,47.93,156.13,156.0,6.6]
[1729088768357,6.6,156.14,156.0,6.6]
[1729088768547,2.859,156.12,156.01,3.2048]
[1729088769348,2.859,156.12,155.99,54.53]
[1729088770048,2.859,156.12,156.0,3.2051]
[1729088770455,2.859,156.12,155.99,54.53]
[1729088771047,9.459,156.12,156.02,47.93]
[1729088771350,2.859,156.12,156.05,47.93]
[1729088771548,6.6,156.15,156.05,54.53]
[1729088771757,6.6,156.15,156.1,3.203]
[1729088772249,2.839,156.17,156.08,47.93]
[1729088772549,6.6,156.2,156.08,47.93]
[1729088772950,3.2017,156.18,156.13,3.2024]
[1729088773152,2.839,156.23,156.11,47.93]
[1729088773350,6.6,156.22,156.11,47.93]
[1729088773855,6.6,156.22,156.08,54.53]
[1729088774045,3.2023,156.15,156.1,3.203]
[1729088774450,3.2023,156.15,156.08,54.53]
[1729088774759,6.6,156.22,156.08,54.53]
[1729088775052,6.6,156.22,156.09,3.2033]
[1729088775258,3.2025,156.14,156.09,3.2033]
[1729088775449,54.53,156.22,156.08,6.6]
[1729088775649,54.53,156.22,156.09,3.2033]
[1729088775865,54.53,156.22,156.08,6.6]
[1729088776255,3.2029,156.12,156.05,47.93]
[1729088776460,6.6,156.16,156.06,6.6]
[1729088776650,1.325,156.15,156.06,6.6]
[1729088776855,3.2031,156.11,156.07,3.2038]
[1729088777162,1.3629,156.14,156.02,69.16]
[1729088777460,3.2039,156.07,156.03,3.2046]
[1729088777659,6.6,156.11,156.02,6.6]
[1729088778260,3.204,156.07,156.02,9.8048]
[1729088778461,6.6,156.11,156.02,6.6]
[1729088778860,3.2036,156.08,156.04,3.2043]
[1729088779559,6.6,156.11,156.02,9.8047]
[1729088780163,3.2041,156.06,156.02,9.8047]
[1729088780365,6.6,156.11,156.05,3.2041]
[1729088780564,3.2035,156.09,156.02,6.6]
[1729088780860,6.6,156.11,156.02,6.6]
[1729088781768,3.2041,156.06,156.03,3.2046]
[1729088782061,3.2041,156.06,155.98,32.76444912]
[1729088782262,3.2041,156.06,156.02,3.2047]
[1729088783065,3.2039,156.07,156.03,3.2046]
[1729088783366,6.6,156.11,156.01,29.53]
[1729088783658,3.2041,156.06,156.03,3.2046]
[1729088784358,6.6,156.11,156.01,29.53]
[1729088784566,1.3629,156.14,156.04,29.53]
[1729088784860,1.3629,156.14,156.04,36.13]
[1729088785058,3.2033,156.1,156.06,3.2039]
[1729088785462,3.2029,156.12,156.08,3.2035]
[1729088785960,1.3629,156.14,156.08,3.2035]
[1729088786163,3.203,156.11,156.08,3.2035]
[1729088786571,3.2031,156.11,156.08,3.2035]
[1729088786871,3.2031,156.11,156.07,3.2037]
[1729088787163,1.3629,156.14,156.04,36.13]
[1729088787371,3.2033,156.1,156.06,3.2038]
[1729088787660,1.3629,156.14,156.04,36.13]
[1729088787866,3.2037,156.08,156.04,9.8043]
[1729088788168,1.3629,156.14,156.04,6.6]
[1729088788554,3.2036,156.09,156.05,3.2041]
[1729088788762,1.3629,156.14,156.04,6.6]
[1729088790261,3.2042,156.05,156.04,6.6]
[1729088790461,1.3629,156.14,156.03,3.2045]
[1729088791565,30.8929,156.14,155.98,32.76444912]
[1729088791769,29.53,156.11,155.98,6.6]
[1729088791969,6.6,156.1,155.98,6.6]
[1729088792371,3.2047,156.03,156.0,3.2052]
[1729088794366,3.2046,156.04,156.01,3.205]
[1729088794567,6.6,156.1,156.01,3.205]
[1729088794775,6.6,156.1,155.97,9.74193543]
[1729088795272,3.2048,156.03,156.0,3.2052]
[1729088795778,6.6,156.1,155.97,6.6]
[1729088796074,3.2057,155.98,155.95,3.2061]
[1729088796368,6.6,156.04,155.92,29.53]
[1729088796564,7.9099,156.03,155.93,9.87402705]
[1729088796770,3.2056,155.99,155.96,3.2059]
[1729088797362,3.2052,156.01,155.98,3.2055]
[1729088797762,7.9099,156.03,155.95,29.53]
[1729088797966,3.2051,156.01,155.97,3.2058]
[1729088798174,3.2051,156.01,155.93,9.87402705]
[1729088798175,7.9099,156.03,155.93,9.87402705]
[1729088798674,3.2057,155.98,155.93,9.87402705]
[1729088799373,3.2057,155.98,155.95,3.2061]
[1729088799979,3.2054,156.0,155.97,3.2057]
[1729088800378,1.3099,156.03,155.97,3.2057]
[1729088800879,1.3099,156.03,155.94,29.53]
[1729088801069,8.0373,156.07,156.0,3.2051]
[1729088801266,3.2046,156.04,156.0,3.2051]
[1729088801472,8.0373,156.07,155.97,3.2057]
[1729088801878,3.205,156.02,155.95,29.53]
[1729088802077,3.205,156.02,155.98,3.2056]
[1729088802271,8.0373,156.07,155.95,29.53]
[1729088802675,8.0373,156.07,155.96,3.2059]
[1729088803176,8.0373,156.07,155.93,9.87402705]
[1729088803378,3.2054,156.0,155.97,3.2058]
[1729088805274,3.2048,156.03,155.99,3.2054]
[1729088805772,3.2048,156.02,155.99,3.2054]
[1729088806480,3.2048,156.02,155.98,3.2056]
[1729088807680,3.2048,156.02,155.95,29.53]
[1729088807878,8.0373,156.07,155.95,29.53]
[1729088808379,1.4373,156.07,155.98,29.53]
[1729088808584,1.4373,156.07,155.99,6.6]
[1729088809376,3.2043,156.05,156.01,3.205]
[1729088809675,3.2043,156.05,155.99,6.6]
[1729088810285,3.204,156.07,155.99,6.6]
[1729088810682,6.6,156.09,155.99,6.6]
[1729088811388,6.6,156.09,156.03,3.2045]
[1729088811587,1.3459,156.1,156.01,3.22234328]
[1729088811781,1.4389,156.13,156.01,29.53]
[1729088811982,8.0389,156.13,156.01,32.75394564]
[1729088812580,3.2032,156.1,156.01,32.75394564]
[1729088813280,3.2032,156.1,156.07,3.2038]
[1729088813482,3.203,156.11,156.04,6.6]
[1729088813879,1.4389,156.13,156.04,6.6]
[1729088814787,3.2036,156.09,156.06,3.2039]
[1729088815589,3.2031,156.11,156.08,3.2036]
[1729088816083,3.2021,156.16,156.12,3.2027]
[1729088816383,2.8669,156.21,156.11,3.21362305]
[1729088816585,3.2017,156.18,156.14,3.2024]
[1729088816781,2.8669,156.21,156.14,3.2024]
[1729088816981,2.8669,156.21,156.1,6.6]
[1729088817189,3.2023,156.15,156.11,3.12519234]
[1729088817481,32.3969,156.21,156.1,6.6]
[1729088817886,3.2027,156.13,156.1,9.8031]
[1729088818081,32.3969,156.21,156.1,6.6]
[1729088818283,3.2026,156.13,156.1,9.8031]
[1729088818486,32.3969,156.21,156.1,6.6]
[1729088819586,3.2027,156.13,156.1,9.8032]
[1729088820594,32.3969,156.21,156.1,6.6]
[1729088820791,3.203,156.11,156.1,6.6]
[1729088821090,3.203,156.11,156.08,3.2035]
[1729088821291,32.3969,156.21,156.01,3.22394564]
[1729088821292,3.2038,156.07,156.01,3.22394564]
[1729088821491,6.6,156.13,156.0,6.6]
[1729088821791,6.6,156.13,156.01,3.20682846]
[1729088821792,2.8321,156.12,156.01,3.20682846]
[1729088822491,32.3621,156.12,156.01,3.20682846]
[1729088822888,3.2044,156.05,156.01,3.2049]
[1729088823088,32.3621,156.12,156.0,6.6]
[1729088823990,32.3621,156.12,155.97,98.75]
[1729088824290,29.53,156.09,155.94,29.53]
[1729088824497,3.2052,156.01,155.98,3.2056]
[1729088825182,29.53,156.06,155.93,9.87402705]
[1729088825481,29.53,156.03,155.92,6.6]
[1729088825691,9.3606,156.02,155.92,3.2069]
[1729088826189,9.3606,156.02,155.89,3.2073]
[1729088826190,3.2067,155.93,155.89,3.2073]
[1729088826388,29.53,156.0,155.88,78.98607133]
[1729088826590,1.3758,155.99,155.88,78.98607133]
[1729088827294,1.3758,155.99,155.91,3.207]
[1729088827295,3.2064,155.95,155.91,3.207]
[1729088827691,1.3758,155.99,155.88,78.98607133]
[1729088827692,3.2061,155.96,155.89,3.2073]
[1729088827897,1.3758,155.99,155.89,3.2073]
[1729088828595,3.2067,155.93,155.89,3.2073]
[1729088828791,1.3758,155.99,155.88,79.08546572]
[1729088828982,3.2068,155.93,155.88,79.0076]
[1729088829894,3.2064,155.95,155.9,3.2072]
[1729088830089,1.3758,155.99,155.88,75.8]
[1729088830293,3.2061,155.96,155.9,3.2072]
[1729088830595,1.3758,155.99,155.88,75.8]
[1729088830798,3.2065,155.95,155.91,3.2071]
[1729088830991,1.3758,155.99,155.88,75.8]
[1729088831396,3.2063,155.95,155.91,3.207]
[1729088831599,1.3758,155.99,155.9,6.6]
[1729088831997,3.2066,155.94,155.9,9.8073]
[1729088832393,3.2064,155.95,155.91,3.2071]
[1729088832694,1.3758,155.99,155.9,6.6]
[1729088832893,3.2057,155.98,155.94,3.2063]
[1729088833601,3.2059,155.97,155.93,3.2065]
[1729088834098,1.3758,155.99,155.9,6.6]
[1729088834801,1.3758,155.99,155.92,3.2068]
[1729088835199,3.2062,155.96,155.92,3.2068]
[1729088835907,3.2063,155.95,155.92,3.2068]
[1729088836697,1.3758,155.99,155.9,6.6]
[1729088836902,3.2058,155.98,155.94,3.2063]
[1729088837104,3.2058,155.98,155.9,6.6]